[Event "Titled Tuesday Blitz April 19 Early 2022"]
[White "Piesik, Piotr"]
[Black "Nozdrachev, Leonid"]
[WhiteFideId "1136194"]
[BlackFideId "24113433"]
[WhiteElo "2190"]
[BlackElo "2242"]
[Result "1-0"]
[Round "10"]
[TimeControl "180+1"]
[Date "2022.04.19"]
[WhiteClock "0:01:43"]
[BlackClock "0:00:34"]

1. Nf3 {[%clk 0:02:58]}  Nf6 {[%clk 0:02:58]} 2. g3 {[%clk 0:02:58]}  g6 {[%clk 0:02:56]} 3. Bg2 {[%clk 0:02:59]}  Bg7 {[%clk 0:02:56]} 4. O-O {[%clk 0:03:00]}  O-O {[%clk 0:02:56]} 5. d4 {[%clk 0:03:01]}  d6 {[%clk 0:02:55]} 6. Nbd2 {[%clk 0:02:55]}  Bf5 {[%clk 0:02:54]} 7. Nh4 {[%clk 0:02:54]}  Bc8 {[%clk 0:02:53]} 8. e4 {[%clk 0:02:54]}  e5 {[%clk 0:02:47]} 9. dxe5 {[%clk 0:02:54]}  dxe5 {[%clk 0:02:47]} 10. Nhf3 {[%clk 0:02:54]}  Ne8 {[%clk 0:02:40]} 11. Qe2 {[%clk 0:02:53]}  b6 {[%clk 0:02:35]} 12. Rd1 {[%clk 0:02:52]}  Ba6 {[%clk 0:02:34]} 13. Qe1 {[%clk 0:02:53]}  Nd7 {[%clk 0:02:30]} 14. b3 {[%clk 0:02:52]}  Qe7 {[%clk 0:02:28]} 15. a4 {[%clk 0:02:52]}  c5 {[%clk 0:02:19]} 16. Bb2 {[%clk 0:02:52]}  Nc7 {[%clk 0:02:16]} 17. Bf1 {[%clk 0:02:44]}  Bxf1 {[%clk 0:02:13]} 18. Qxf1 {[%clk 0:02:45]}  Ne6 {[%clk 0:02:13]} 19. c3 {[%clk 0:02:44]}  Nc7 {[%clk 0:01:54]} 20. Nc4 {[%clk 0:02:43]}  Rfd8 {[%clk 0:01:49]} 21. Rd3 {[%clk 0:02:36]}  Nf8 {[%clk 0:01:48]} 22. Rad1 {[%clk 0:02:36]}  Rxd3 {[%clk 0:01:47]} 23. Qxd3 {[%clk 0:02:37]}  Nfe6 {[%clk 0:01:44]} 24. Nfxe5 {[%clk 0:02:27]}  Rd8 {[%clk 0:01:42]} 25. Nc6 {[%clk 0:02:26]}  Rxd3 {[%clk 0:01:21]} 26. Nxe7+ {[%clk 0:02:26]}  Kf8 {[%clk 0:01:22]} 27. Nxg6+ {[%clk 0:02:26]}  hxg6 {[%clk 0:01:23]} 28. Rxd3 {[%clk 0:02:26]}  Ke7 {[%clk 0:01:22]} 29. f4 {[%clk 0:02:26]}  f6 {[%clk 0:01:18]} 30. Bc1 {[%clk 0:02:24]}  Bf8 {[%clk 0:01:10]} 31. f5 {[%clk 0:02:24]}  gxf5 {[%clk 0:01:04]} 32. exf5 {[%clk 0:02:25]}  Nd8 {[%clk 0:01:03]} 33. Bf4 {[%clk 0:02:23]}  Ne8 {[%clk 0:01:02]} 34. Nd6 {[%clk 0:02:18]}  Nc6 {[%clk 0:00:56]} 35. Nc8+ {[%clk 0:02:17]}  Kf7 {[%clk 0:00:54]} 36. Rd7+ {[%clk 0:02:18]}  Kg8 {[%clk 0:00:54]} 37. Nxa7 {[%clk 0:02:16]}  Na5 {[%clk 0:00:52]} 38. Nc8 {[%clk 0:02:11]}  Nxb3 {[%clk 0:00:51]} 39. Nxb6 {[%clk 0:02:10]}  c4 {[%clk 0:00:50]} 40. Nxc4 {[%clk 0:02:09]}  Nc5 {[%clk 0:00:49]} 41. Rd8 {[%clk 0:02:09]}  Kf7 {[%clk 0:00:48]} 42. a5 {[%clk 0:02:03]}  Ne4 {[%clk 0:00:48]} 43. Rd7+ {[%clk 0:01:59]}  Kg8 {[%clk 0:00:47]} 44. a6 {[%clk 0:01:57]}  Bc5+ {[%clk 0:00:45]} 45. Kg2 {[%clk 0:01:57]}  Nxc3 {[%clk 0:00:44]} 46. a7 {[%clk 0:01:56]}  Bxa7 {[%clk 0:00:42]} 47. Rxa7 {[%clk 0:01:57]}  Nd5 {[%clk 0:00:42]} 48. Rd7 {[%clk 0:01:51]}  Nc3 {[%clk 0:00:40]} 49. Kf3 {[%clk 0:01:47]}  Ng7 {[%clk 0:00:37]} 50. g4 {[%clk 0:01:47]}  Ne8 {[%clk 0:00:37]} 51. Nd6 {[%clk 0:01:46]}  Ng7 {[%clk 0:00:34]} 52. Bh6 {[%clk 0:01:43]} 1-0


[Site "https://www.chess.com"]

[Event "Titled Tuesday Blitz April 19 Early 2022"]
[White "Piliczewski, Bogusz"]
[Black "Skytte, Rasmus"]
[WhiteFideId "1104144"]
[BlackFideId "1404210"]
[WhiteElo "1896"]
[BlackElo "2430"]
[Result "1-0"]
[Round "10"]
[TimeControl "180+1"]
[Date "2022.04.19"]
[WhiteClock "0:00:10"]
[BlackClock "0:00:08"]

1. d4 {[%clk 0:03:00]}  d5 {[%clk 0:02:56]} 2. Nf3 {[%clk 0:03:01]}  Nf6 {[%clk 0:02:53]} 3. c4 {[%clk 0:03:00]}  c6 {[%clk 0:02:51]} 4. e3 {[%clk 0:02:58]}  Bf5 {[%clk 0:02:46]} 5. Bd3 {[%clk 0:02:58]}  Bxd3 {[%clk 0:02:44]} 6. Qxd3 {[%clk 0:02:58]}  e6 {[%clk 0:02:43]} 7. O-O {[%clk 0:02:58]}  Bd6 {[%clk 0:02:41]} 8. Nc3 {[%clk 0:02:57]}  O-O {[%clk 0:02:39]} 9. e4 {[%clk 0:02:57]}  dxe4 {[%clk 0:02:35]} 10. Nxe4 {[%clk 0:02:57]}  Nxe4 {[%clk 0:02:35]} 11. Qxe4 {[%clk 0:02:57]}  Nd7 {[%clk 0:02:35]} 12. Ng5 {[%clk 0:02:46]}  Nf6 {[%clk 0:02:25]} 13. Qh4 {[%clk 0:02:39]}  h6 {[%clk 0:02:23]} 14. Nf3 {[%clk 0:02:24]}  Rc8 {[%clk 0:02:05]} 15. Re1 {[%clk 0:02:23]}  Bb8 {[%clk 0:01:57]} 16. g4 {[%clk 0:01:57]}  Nh7 {[%clk 0:01:41]} 17. Qh5 {[%clk 0:01:45]}  Nf6 {[%clk 0:01:34]} 18. Qh4 {[%clk 0:01:40]}  Nh7 {[%clk 0:01:34]} 19. Qh5 {[%clk 0:01:40]}  Nf6 {[%clk 0:01:33]} 20. Qh3 {[%clk 0:01:26]}  Nh7 {[%clk 0:01:10]} 21. Kh1 {[%clk 0:01:07]}  Ng5 {[%clk 0:01:06]} 22. Bxg5 {[%clk 0:01:03]}  hxg5 {[%clk 0:01:07]} 23. Qh5 {[%clk 0:00:57]}  Qf6 {[%clk 0:00:53]} 24. Nxg5 {[%clk 0:00:49]}  Qh6 {[%clk 0:00:45]} 25. Qxh6 {[%clk 0:00:43]}  gxh6 {[%clk 0:00:46]} 26. Nf3 {[%clk 0:00:41]}  a6 {[%clk 0:00:32]} 27. Rg1 {[%clk 0:00:39]}  Bf4 {[%clk 0:00:29]} 28. Rae1 {[%clk 0:00:34]}  Bg5 {[%clk 0:00:24]} 29. h4 {[%clk 0:00:33]}  Bf4 {[%clk 0:00:22]} 30. Re4 {[%clk 0:00:33]}  Bd6 {[%clk 0:00:20]} 31. g5 {[%clk 0:00:33]}  h5 {[%clk 0:00:19]} 32. g6 {[%clk 0:00:32]}  fxg6 {[%clk 0:00:20]} 33. Ng5 {[%clk 0:00:28]}  Rxf2 {[%clk 0:00:18]} 34. Rg2 {[%clk 0:00:24]}  Rf1+ {[%clk 0:00:16]} 35. Rg1 {[%clk 0:00:24]}  Rf2 {[%clk 0:00:16]} 36. Rge1 {[%clk 0:00:15]}  Rh2+ {[%clk 0:00:13]} 37. Kg1 {[%clk 0:00:16]}  Rxb2 {[%clk 0:00:13]} 38. Rxe6 {[%clk 0:00:13]}  Bh2+ {[%clk 0:00:11]} 39. Kh1 {[%clk 0:00:12]}  Kg7 {[%clk 0:00:08]} 40. Re7+ {[%clk 0:00:11]}  Kg8 {[%clk 0:00:08]} 41. R1e6 {[%clk 0:00:10]} 1-0


[Site "https://www.chess.com"]

[Event "Titled Tuesday Blitz April 19 Early 2022"]
[White "Pires, Marcos Vinicius Torsani"]
[Black "Kim, Sergey"]
[WhiteFideId "2118939"]
[BlackFideId "13700570"]
[WhiteElo "2273"]
[BlackElo "2556"]
[Result "0-1"]
[Round "10"]
[TimeControl "180+1"]
[Date "2022.04.19"]
[WhiteClock "0:00:34"]
[BlackClock "0:01:22"]

1. e4 {[%clk 0:03:00]}  e5 {[%clk 0:02:59]} 2. Nf3 {[%clk 0:03:00]}  Nc6 {[%clk 0:02:59]} 3. Nc3 {[%clk 0:03:01]}  Nf6 {[%clk 0:02:59]} 4. d4 {[%clk 0:03:01]}  exd4 {[%clk 0:02:58]} 5. Nxd4 {[%clk 0:03:02]}  Bb4 {[%clk 0:02:58]} 6. Nxc6 {[%clk 0:03:02]}  bxc6 {[%clk 0:02:59]} 7. Bd3 {[%clk 0:03:02]}  d5 {[%clk 0:02:59]} 8. exd5 {[%clk 0:03:03]}  Qe7+ {[%clk 0:02:59]} 9. Qe2 {[%clk 0:03:03]}  Qxe2+ {[%clk 0:02:59]} 10. Bxe2 {[%clk 0:03:00]}  Nxd5 {[%clk 0:03:00]} 11. Bd2 {[%clk 0:03:00]}  a5 {[%clk 0:02:59]} 12. Nxd5 {[%clk 0:02:57]}  cxd5 {[%clk 0:02:59]} 13. O-O-O {[%clk 0:02:54]}  c6 {[%clk 0:02:47]} 14. a3 {[%clk 0:02:52]}  Bc5 {[%clk 0:02:44]} 15. f3 {[%clk 0:02:37]}  Be6 {[%clk 0:02:41]} 16. Bd3 {[%clk 0:02:37]}  O-O {[%clk 0:02:36]} 17. Rhe1 {[%clk 0:02:37]}  Bd6 {[%clk 0:02:28]} 18. g3 {[%clk 0:02:30]}  Rfb8 {[%clk 0:02:25]} 19. Bc3 {[%clk 0:02:25]}  Bf8 {[%clk 0:02:18]} 20. f4 {[%clk 0:02:21]}  g6 {[%clk 0:02:16]} 21. f5 {[%clk 0:02:14]}  gxf5 {[%clk 0:02:09]} 22. Rf1 {[%clk 0:02:14]}  Bh6+ {[%clk 0:02:00]} 23. Bd2 {[%clk 0:02:08]}  Bg7 {[%clk 0:01:57]} 24. b3 {[%clk 0:01:55]}  Bf8 {[%clk 0:01:51]} 25. a4 {[%clk 0:01:52]}  c5 {[%clk 0:01:49]} 26. Bxf5 {[%clk 0:01:50]}  c4 {[%clk 0:01:47]} 27. Bxe6 {[%clk 0:01:47]}  fxe6 {[%clk 0:01:47]} 28. Rde1 {[%clk 0:01:35]}  Ra6 {[%clk 0:01:42]} 29. Rf6 {[%clk 0:01:30]}  cxb3 {[%clk 0:01:40]} 30. cxb3 {[%clk 0:01:30]}  Rc6+ {[%clk 0:01:37]} 31. Kd1 {[%clk 0:01:07]}  Rxb3 {[%clk 0:01:36]} 32. Rexe6 {[%clk 0:01:05]}  Rxe6 {[%clk 0:01:34]} 33. Rxe6 {[%clk 0:01:06]}  Ra3 {[%clk 0:01:34]} 34. Bxa5 {[%clk 0:01:04]}  Rxa4 {[%clk 0:01:34]} 35. Bc3 {[%clk 0:00:56]}  d4 {[%clk 0:01:33]} 36. Re4 {[%clk 0:00:47]}  Bg7 {[%clk 0:01:33]} 37. Bd2 {[%clk 0:00:38]}  Kf7 {[%clk 0:01:30]} 38. Ke2 {[%clk 0:00:39]}  Ra3 {[%clk 0:01:28]} 39. Bf4 {[%clk 0:00:35]}  Kg6 {[%clk 0:01:25]} 40. h4 {[%clk 0:00:35]}  Kf5 {[%clk 0:01:23]} 41. Re5+ {[%clk 0:00:34]}  Bxe5 {[%clk 0:01:22]} 0-1


[Site "https://www.chess.com"]

[Event "Titled Tuesday Blitz April 19 Early 2022"]
[White "Postnikov, Daniil"]
[Black "Rustemov, Alexander"]
[WhiteFideId "4166329"]
[BlackFideId "4119002"]
[WhiteElo "2261"]
[BlackElo "2762"]
[Result "1/2-1/2"]
[Round "10"]
[TimeControl "180+1"]
[Date "2022.04.19"]
[WhiteClock "0:00:06"]
[BlackClock "0:00:21"]

1. d4 {[%clk 0:03:00]}  d5 {[%clk 0:02:58]} 2. c4 {[%clk 0:03:01]}  dxc4 {[%clk 0:02:58]} 3. Nf3 {[%clk 0:03:02]}  e6 {[%clk 0:02:56]} 4. e3 {[%clk 0:03:01]}  a6 {[%clk 0:02:55]} 5. Bxc4 {[%clk 0:03:00]}  Nf6 {[%clk 0:02:53]} 6. O-O {[%clk 0:03:00]}  Be7 {[%clk 0:02:49]} 7. Qe2 {[%clk 0:02:54]}  b5 {[%clk 0:02:47]} 8. Bd3 {[%clk 0:02:52]}  Bb7 {[%clk 0:02:39]} 9. e4 {[%clk 0:02:49]}  Nbd7 {[%clk 0:02:38]} 10. Rd1 {[%clk 0:02:46]}  c5 {[%clk 0:02:35]} 11. Nc3 {[%clk 0:02:38]}  c4 {[%clk 0:02:33]} 12. Bc2 {[%clk 0:02:36]}  O-O {[%clk 0:02:33]} 13. e5 {[%clk 0:02:35]}  Nd5 {[%clk 0:02:32]} 14. Qe4 {[%clk 0:02:30]}  g6 {[%clk 0:02:30]} 15. Qg4 {[%clk 0:02:30]}  Re8 {[%clk 0:02:13]} 16. h4 {[%clk 0:02:29]}  h5 {[%clk 0:02:09]} 17. Qg3 {[%clk 0:02:29]}  Kg7 {[%clk 0:02:08]} 18. Ne4 {[%clk 0:02:23]}  Rc8 {[%clk 0:02:03]} 19. Bg5 {[%clk 0:02:18]}  Nb4 {[%clk 0:01:56]} 20. Bb1 {[%clk 0:02:18]}  Bxe4 {[%clk 0:01:53]} 21. Bxe4 {[%clk 0:02:18]}  Nb6 {[%clk 0:01:52]} 22. Bd2 {[%clk 0:01:57]}  N6d5 {[%clk 0:01:44]} 23. Ng5 {[%clk 0:01:49]}  Bxg5 {[%clk 0:01:29]} 24. Bxg5 {[%clk 0:01:48]}  Qd7 {[%clk 0:01:26]} 25. a3 {[%clk 0:01:42]}  Nc6 {[%clk 0:01:25]} 26. Qf3 {[%clk 0:01:05]}  Nce7 {[%clk 0:01:22]} 27. Bf6+ {[%clk 0:01:06]}  Kg8 {[%clk 0:01:15]} 28. g4 {[%clk 0:01:02]}  hxg4 {[%clk 0:01:11]} 29. Qxg4 {[%clk 0:01:03]}  Nxf6 {[%clk 0:01:04]} 30. exf6 {[%clk 0:01:04]}  Nd5 {[%clk 0:01:02]} 31. Qg5 {[%clk 0:01:03]}  Qd8 {[%clk 0:00:55]} 32. Bxd5 {[%clk 0:00:49]}  exd5 {[%clk 0:00:55]} 33. Re1 {[%clk 0:00:44]}  Re4 {[%clk 0:00:40]} 34. f3 {[%clk 0:00:41]}  Rxe1+ {[%clk 0:00:38]} 35. Rxe1 {[%clk 0:00:42]}  Qf8 {[%clk 0:00:37]} 36. Re7 {[%clk 0:00:40]}  Re8 {[%clk 0:00:31]} 37. h5 {[%clk 0:00:35]}  Rxe7 {[%clk 0:00:28]} 38. fxe7 {[%clk 0:00:36]}  Qe8 {[%clk 0:00:29]} 39. Kf2 {[%clk 0:00:32]}  a5 {[%clk 0:00:27]} 40. h6 {[%clk 0:00:20]}  Kh7 {[%clk 0:00:27]} 41. Qe5 {[%clk 0:00:16]}  Kxh6 {[%clk 0:00:27]} 42. f4 {[%clk 0:00:15]}  b4 {[%clk 0:00:26]} 43. axb4 {[%clk 0:00:12]}  axb4 {[%clk 0:00:27]} 44. Qg5+ {[%clk 0:00:09]}  Kh7 {[%clk 0:00:26]} 45. f5 {[%clk 0:00:07]}  gxf5 {[%clk 0:00:20]} 46. Qxf5+ {[%clk 0:00:07]}  Kg7 {[%clk 0:00:20]} 47. Qg5+ {[%clk 0:00:04]}  Kh7 {[%clk 0:00:20]} 48. Qh5+ {[%clk 0:00:04]}  Kg7 {[%clk 0:00:21]} 49. Qg5+ {[%clk 0:00:05]}  Kh7 {[%clk 0:00:21]} 50. Qh5+ {[%clk 0:00:06]}  Kg7 {[%clk 0:00:21]} 51. Qg5+ {[%clk 0:00:06]} 1/2-1/2


[Site "https://www.chess.com"]

[Event "Titled Tuesday Blitz April 19 Early 2022"]
[White "Richter, Nils"]
[Black "Vusatiuk, Vladimir"]
[WhiteFideId "12990809"]
[BlackFideId "14118610"]
[WhiteElo "2243"]
[BlackElo "2157"]
[Result "1-0"]
[Round "10"]
[TimeControl "180+1"]
[Date "2022.04.19"]
[WhiteClock "0:00:27"]
[BlackClock "0:00:05"]

1. b3 {[%clk 0:03:00]}  e5 {[%clk 0:01:40]} 2. Bb2 {[%clk 0:03:01]}  Nc6 {[%clk 0:01:39]} 3. c4 {[%clk 0:02:54]}  Nf6 {[%clk 0:01:37]} 4. e3 {[%clk 0:02:47]}  d5 {[%clk 0:01:36]} 5. cxd5 {[%clk 0:02:46]}  Nxd5 {[%clk 0:01:37]} 6. Nc3 {[%clk 0:02:46]}  Be6 {[%clk 0:01:32]} 7. Nf3 {[%clk 0:02:44]}  f6 {[%clk 0:01:31]} 8. d4 {[%clk 0:02:40]}  Bb4 {[%clk 0:01:26]} 9. Rc1 {[%clk 0:02:37]}  O-O {[%clk 0:01:06]} 10. Bc4 {[%clk 0:02:32]}  Qe8 {[%clk 0:00:47]} 11. dxe5 {[%clk 0:02:18]}  Nxc3 {[%clk 0:00:46]} 12. Bxc3 {[%clk 0:02:18]}  Bxc4 {[%clk 0:00:42]} 13. Bxb4 {[%clk 0:02:07]}  Ba6 {[%clk 0:00:34]} 14. Bxf8 {[%clk 0:02:06]}  Qxf8 {[%clk 0:00:35]} 15. Qd5+ {[%clk 0:02:03]}  Kh8 {[%clk 0:00:34]} 16. Qc5 {[%clk 0:01:56]}  Qe8 {[%clk 0:00:18]} 17. b4 {[%clk 0:01:48]}  Nxe5 {[%clk 0:00:17]} 18. Nxe5 {[%clk 0:01:47]}  fxe5 {[%clk 0:00:18]} 19. Rd1 {[%clk 0:01:02]}  h6 {[%clk 0:00:17]} 20. f3 {[%clk 0:01:00]}  e4 {[%clk 0:00:16]} 21. Kf2 {[%clk 0:00:59]}  exf3 {[%clk 0:00:16]} 22. gxf3 {[%clk 0:00:59]}  Qa4 {[%clk 0:00:15]} 23. Rd2 {[%clk 0:00:56]}  Re8 {[%clk 0:00:13]} 24. Rhd1 {[%clk 0:00:55]}  Qa3 {[%clk 0:00:12]} 25. Rd8 {[%clk 0:00:44]}  Qxa2+ {[%clk 0:00:11]} 26. Kg1 {[%clk 0:00:45]}  Qf7 {[%clk 0:00:08]} 27. b5 {[%clk 0:00:34]}  Bxb5 {[%clk 0:00:06]} 28. Qxb5 {[%clk 0:00:32]}  Qg6+ {[%clk 0:00:06]} 29. Kh1 {[%clk 0:00:31]}  Rxd8 {[%clk 0:00:05]} 30. Rxd8+ {[%clk 0:00:31]}  Kh7 {[%clk 0:00:06]} 31. Qd3 {[%clk 0:00:26]}  Qxd3 {[%clk 0:00:05]} 32. Rxd3 {[%clk 0:00:27]} 1-0


[Site "https://www.chess.com"]

[Event "Titled Tuesday Blitz April 19 Early 2022"]
[White "Samant Aditya S"]
[Black "Fromm, Marius"]
[WhiteFideId "35080580"]
[BlackFideId "12993190"]
[WhiteElo "1916"]
[BlackElo "2558"]
[Result "0-1"]
[Round "10"]
[TimeControl "180+1"]
[Date "2022.04.19"]
[WhiteClock "0:00:08"]
[BlackClock "0:00:10"]

1. e4 {[%clk 0:03:00]}  c5 {[%clk 0:03:00]} 2. Nf3 {[%clk 0:03:01]}  d6 {[%clk 0:03:00]} 3. d4 {[%clk 0:03:01]}  cxd4 {[%clk 0:03:01]} 4. Nxd4 {[%clk 0:03:01]}  Nf6 {[%clk 0:03:01]} 5. Nc3 {[%clk 0:03:01]}  a6 {[%clk 0:03:01]} 6. Be3 {[%clk 0:02:58]}  e5 {[%clk 0:03:01]} 7. Nf3 {[%clk 0:02:58]}  Be7 {[%clk 0:03:01]} 8. Bc4 {[%clk 0:02:58]}  O-O {[%clk 0:03:02]} 9. O-O {[%clk 0:02:59]}  Nc6 {[%clk 0:03:02]} 10. Bb3 {[%clk 0:02:57]}  Be6 {[%clk 0:02:59]} 11. Qe2 {[%clk 0:02:56]}  Na5 {[%clk 0:02:59]} 12. Rfd1 {[%clk 0:02:51]}  Nxb3 {[%clk 0:02:57]} 13. axb3 {[%clk 0:02:52]}  Qc7 {[%clk 0:02:56]} 14. Bg5 {[%clk 0:02:50]}  Rac8 {[%clk 0:02:53]} 15. Bxf6 {[%clk 0:02:27]}  Bxf6 {[%clk 0:02:54]} 16. Rac1 {[%clk 0:02:28]}  Qc5 {[%clk 0:02:40]} 17. Nd5 {[%clk 0:02:22]}  Bd8 {[%clk 0:02:40]} 18. c4 {[%clk 0:02:13]}  f5 {[%clk 0:02:31]} 19. b4 {[%clk 0:01:56]}  Qc6 {[%clk 0:02:27]} 20. Rc3 {[%clk 0:01:52]}  fxe4 {[%clk 0:02:09]} 21. Nd2 {[%clk 0:01:51]}  Bxd5 {[%clk 0:01:43]} 22. cxd5 {[%clk 0:01:52]}  Qd7 {[%clk 0:01:28]} 23. Rxc8 {[%clk 0:01:45]}  Qxc8 {[%clk 0:01:29]} 24. Nxe4 {[%clk 0:01:46]}  Qd7 {[%clk 0:01:05]} 25. g3 {[%clk 0:01:33]}  Bb6 {[%clk 0:01:04]} 26. Kg2 {[%clk 0:01:33]}  Bd4 {[%clk 0:01:01]} 27. f3 {[%clk 0:00:13]}  Qf7 {[%clk 0:00:50]} 28. b3 {[%clk 0:00:11]}  Qxd5 {[%clk 0:00:47]} 29. Qc4 {[%clk 0:00:11]}  Qxc4 {[%clk 0:00:42]} 30. bxc4 {[%clk 0:00:11]}  Rd8 {[%clk 0:00:40]} 31. Rc1 {[%clk 0:00:09]}  h6 {[%clk 0:00:39]} 32. Kf1 {[%clk 0:00:09]}  Kf7 {[%clk 0:00:39]} 33. Ke2 {[%clk 0:00:09]}  Ke6 {[%clk 0:00:39]} 34. Rc2 {[%clk 0:00:08]}  Rc8 {[%clk 0:00:38]} 35. Kd3 {[%clk 0:00:08]}  b5 {[%clk 0:00:35]} 36. cxb5 {[%clk 0:00:05]}  Rxc2 {[%clk 0:00:36]} 37. Kxc2 {[%clk 0:00:06]}  axb5 {[%clk 0:00:37]} 38. Kd3 {[%clk 0:00:05]}  d5 {[%clk 0:00:31]} 39. Nd2 {[%clk 0:00:05]}  Bg1 {[%clk 0:00:28]} 40. h3 {[%clk 0:00:04]}  Bf2 {[%clk 0:00:25]} 41. g4 {[%clk 0:00:04]}  Be1 {[%clk 0:00:20]} 42. Nb3 {[%clk 0:00:03]}  Bxb4 {[%clk 0:00:20]} 43. Ke3 {[%clk 0:00:04]}  Kd6 {[%clk 0:00:15]} 44. Kd3 {[%clk 0:00:04]}  Bc5 {[%clk 0:00:13]} 45. Kc3 {[%clk 0:00:02]}  b4+ {[%clk 0:00:13]} 46. Kd3 {[%clk 0:00:03]}  Kc6 {[%clk 0:00:14]} 47. Nc1 {[%clk 0:00:02]}  Kb5 {[%clk 0:00:14]} 48. Kc2 {[%clk 0:00:03]}  Kc4 {[%clk 0:00:14]} 49. Nb3 {[%clk 0:00:03]}  Bb6 {[%clk 0:00:10]} 50. Nd2+ {[%clk 0:00:03]}  Kd4 {[%clk 0:00:10]} 51. Kd1 {[%clk 0:00:02]}  Ke3 {[%clk 0:00:10]} 52. Nb3 {[%clk 0:00:02]}  Kxf3 {[%clk 0:00:10]} 53. Kd2 {[%clk 0:00:03]}  e4 {[%clk 0:00:11]} 54. Ke1 {[%clk 0:00:03]}  e3 {[%clk 0:00:11]} 55. Nc1 {[%clk 0:00:03]}  Ke4 {[%clk 0:00:11]} 56. Ke2 {[%clk 0:00:02]}  d4 {[%clk 0:00:12]} 57. Nd3 {[%clk 0:00:03]}  b3 {[%clk 0:00:12]} 58. Nb2 {[%clk 0:00:03]}  Ba5 {[%clk 0:00:11]} 59. Nd3 {[%clk 0:00:04]}  Bc3 {[%clk 0:00:11]} 60. Nc5+ {[%clk 0:00:05]}  Kf4 {[%clk 0:00:11]} 61. Nxb3 {[%clk 0:00:06]}  Kg3 {[%clk 0:00:11]} 62. Nc5 {[%clk 0:00:05]}  Kxh3 {[%clk 0:00:11]} 63. Ne6 {[%clk 0:00:06]}  g5 {[%clk 0:00:11]} 64. Kf3 {[%clk 0:00:05]}  e2 {[%clk 0:00:07]} 65. Kxe2 {[%clk 0:00:04]}  Kxg4 {[%clk 0:00:08]} 66. Nc5 {[%clk 0:00:05]}  h5 {[%clk 0:00:08]} 67. Kf2 {[%clk 0:00:05]}  h4 {[%clk 0:00:07]} 68. Kg2 {[%clk 0:00:06]}  h3+ {[%clk 0:00:07]} 69. Kh2 {[%clk 0:00:06]}  Kh4 {[%clk 0:00:06]} 70. Nd3 {[%clk 0:00:05]}  g4 {[%clk 0:00:06]} 71. Ne5 {[%clk 0:00:06]}  g3+ {[%clk 0:00:07]} 72. Kg1 {[%clk 0:00:06]}  Kg5 {[%clk 0:00:07]} 73. Nd3 {[%clk 0:00:05]}  Bd2 {[%clk 0:00:06]} 74. Nc5 {[%clk 0:00:05]}  Be3+ {[%clk 0:00:06]} 75. Kf1 {[%clk 0:00:06]}  g2+ {[%clk 0:00:07]} 76. Ke2 {[%clk 0:00:06]}  g1=Q {[%clk 0:00:08]} 77. Kd3 {[%clk 0:00:07]}  Qd1+ {[%clk 0:00:08]} 78. Kc4 {[%clk 0:00:08]}  Qc2+ {[%clk 0:00:08]} 79. Kd5 {[%clk 0:00:08]}  Qxc5+ {[%clk 0:00:09]} 80. Kxc5 {[%clk 0:00:08]}  h2 {[%clk 0:00:10]} 0-1


[Site "https://www.chess.com"]

[Event "Titled Tuesday Blitz April 19 Early 2022"]
[White "Sarkar, Justin"]
[Black "Nogerbek, Kazybek"]
[WhiteFideId "2010011"]
[BlackFideId "13710427"]
[WhiteElo "2038"]
[BlackElo "2466"]
[Result "0-1"]
[Round "10"]
[TimeControl "180+1"]
[Date "2022.04.19"]
[WhiteClock "0:00:02"]
[BlackClock "0:01:54"]

1. d4 {[%clk 0:02:57]}  e5 {[%clk 0:02:59]} 2. dxe5 {[%clk 0:02:56]}  Nc6 {[%clk 0:02:59]} 3. Nf3 {[%clk 0:02:55]}  d6 {[%clk 0:03:00]} 4. Bg5 {[%clk 0:02:54]}  Qd7 {[%clk 0:03:00]} 5. exd6 {[%clk 0:02:49]}  Bxd6 {[%clk 0:03:01]} 6. Nc3 {[%clk 0:02:43]}  h6 {[%clk 0:03:02]} 7. Bh4 {[%clk 0:02:33]}  Nge7 {[%clk 0:03:02]} 8. e4 {[%clk 0:02:27]}  Qe6 {[%clk 0:02:53]} 9. Bd3 {[%clk 0:02:19]}  Bd7 {[%clk 0:02:50]} 10. O-O {[%clk 0:02:15]}  O-O-O {[%clk 0:02:50]} 11. Nb5 {[%clk 0:01:59]}  Bf4 {[%clk 0:02:41]} 12. Bg3 {[%clk 0:01:40]}  g5 {[%clk 0:02:40]} 13. Bxf4 {[%clk 0:01:23]}  gxf4 {[%clk 0:02:41]} 14. Qc1 {[%clk 0:01:00]}  Ng6 {[%clk 0:02:38]} 15. Nfd4 {[%clk 0:00:51]}  Nxd4 {[%clk 0:02:37]} 16. Nxd4 {[%clk 0:00:51]}  Qf6 {[%clk 0:02:37]} 17. Nf5 {[%clk 0:00:44]}  Rhg8 {[%clk 0:02:31]} 18. Kh1 {[%clk 0:00:39]}  Bxf5 {[%clk 0:02:24]} 19. exf5 {[%clk 0:00:39]}  Nh4 {[%clk 0:02:25]} 20. Be4 {[%clk 0:00:22]}  Rd4 {[%clk 0:02:17]} 21. Qxf4 {[%clk 0:00:14]}  Nxg2 {[%clk 0:02:18]} 22. Qf3 {[%clk 0:00:14]}  Nh4 {[%clk 0:02:09]} 23. Bxb7+ {[%clk 0:00:10]}  Kb8 {[%clk 0:02:09]} 24. Qc6 {[%clk 0:00:07]}  Rd6 {[%clk 0:02:04]} 25. Qe4 {[%clk 0:00:06]}  Nxf5 {[%clk 0:01:54]} 26. Rg1 {[%clk 0:00:02]}  Rgd8 {[%clk 0:01:54]} 0-1


[Site "https://www.chess.com"]